Cogmind - Beta 15 @@@ ROGUE MODE // 2025.06.09 @ 02:12:39 Player: Skysub Result: Destroyed by K6-UX4(R) with Subdweller Laser Performance ------------- Evolutions (0) 0 Regions Visited (2) 400 Robots Destroyed (36) 180 Value Destroyed (790) 790 Prototype IDs (0) 0 Alien Tech Used (0) 0 Bonus (0) 0 TOTAL SCORE: 1370 Bonus ------- None Cogmind --------- Core Integrity 0/250 Matter 288/300 Energy 199/200 System Corruption 0% Temperature Cool (6) Movement Rolling (110) Location -10/Subcaves Parts ------- > --- POWER (1) -------- Subdweller Power Source > --- PROPULSION (2) --- Subdweller Monowheel > --- UTILITY (2) ------ Small Storage Unit Structural Scanner > --- WEAPON (2) ------- Small Laser Subdweller Machine Gun > --- INVENTORY (8) ---- High-capacity Storage Unit Subdweller Optics Subdweller Optics Terrain Scan Processor Makeshift Light Armor Plating Scrap Shield Peak State ------------ > --- POWER ------------ Light Nuclear Core > --- PROPULSION ------- Light Treads Light Treads > --- UTILITY ---------- Small Storage Unit Improved Terrain Scanner > --- WEAPON ----------- Small Laser Small Laser > --- INVENTORY -------- Ion Engine Ion Engine Wheel Compact Wheel Targeting Computer Mining Laser [Rating: 11] Favorites ----------- Power Light Nuclear Core Engine Ion Engine Power Core Light Nuclear Core Propulsion Light Treads Treads Light Treads Wheel Wheel Utility Small Storage Unit Device Improved Terrain Scanner Storage Small Storage Unit Processor Targeting Computer Protection Makeshift Light Armor Plating Weapon Small Laser Energy Gun Small Laser Ballistic Gun Subdweller Machine Gun Ballistic Cannon Battle Cannon Special Weapon Mining Laser Build | -11 -10 -10 ------- Run | Yrd Mat Sub Slots Evolved . | . . . Power . | . . . Propulsion . | . . . Utility . | . . . Weapon . | . . . Parts Attached 21 | 7 3 11 Power 4 | 1 1 2 Engine 3 | 1 . 2 Core 1 | . 1 . Reactor . | . . . Propulsion 5 | 2 1 2 Treads 2 | 2 . . Leg . | . . . Wheel 3 | . 1 2 Hover . | . . . Flight . | . . . Utility 5 | 2 1 2 Device 2 | 1 1 . Storage 1 | 1 . . Processor 1 | . . 1 Hackware . | . . . Protection 1 | . . 1 Artifact . | . . . Weapon 7 | 2 . 5 Energy Gun 3 | 2 . 1 Energy Cannon . | . . . Ballistic Gun 2 | . . 2 Ballistic Cannon 1 | . . 1 Launcher . | . . . Special Weapon 1 | . . 1 Impact Weapon . | . . . Slashing Weapon . | . . . Piercing Weapon . | . . . Special Melee Weapon . | . . . Unidentified Prototypes . | . . . Parts Lost 10 | . 2 8 Power 1 | . . 1 Propulsion 4 | . 1 3 Utility 1 | . 1 . Weapon 4 | . . 4 Highest Loss Streak 6 | . 1 6 To Critical Strikes . | . . . Average Backups 6 | 2 6 6 Power . | . 1 . Propulsion 1 | 1 2 . Utility 3 | . 2 4 Weapon 1 | . 1 1 Tool/Special . | . . . Unused Backups 5 | . . 5 Power . | . . . Propulsion . | . . . Utility 5 | . . 5 Weapon . | . . . Tool/Special . | . . . Average Slot Usage (%) 88 | . 94 84 Engine 5 | . 2 8 Core 7 | . 11 4 Treads 15 | . 27 4 Wheel 6 | . . 13 Device 8 | . 9 7 Storage 14 | . 14 14 Processor 3 | . . 6 Energy Gun 21 | . 28 15 Ballistic Gun 2 | . . 4 Special Weapon 1 | . . 2 Peak Build Rating 11 | 9 11 11 Average Rating 8 | 5 9 8 On Entrance 6 | . 9 9 Naked Turns . | . . . Heaviest Build 16 | 13 13 16 Greatest Support 40 | 40 40 20 Greatest Overweight (x) 3 | 1 . 3 Average Overweight (x) . | . . . Largest Inventory Capacity 8 | 8 8 8 Average Capacity 7 | 7 8 8 Most Carried 8 | 4 8 8 Average Carried 6 | 2 6 7 Final Capacity 8 | 8 8 8 Final Carried 7 | 4 7 7 Class Distribution -------------------- 89% | Mutant 10% | Scavenger-Mutant Dominant Class ---------------- Mutant | -10/Materials Mutant | -10/Subcaves Resources | -11 -10 -10 ----------- Run | Yrd Mat Sub Matter Collected 439 | 270 10 159 Remotely . | . . . Salvage Created 1352 | 153 930 269 Parts 68 | 9 47 12 Haulers Intercepted . | . . . Recyclers Shooed 2 | . 2 . Parts Field Recycled . | . . . Retrieved Matter . | . . . Parts Self-Destructed 5 | . . 5 Prevented . | . . . Kills | -11 -10 -10 ------- Run | Yrd Mat Sub Combat Hostiles Destroyed 21 | . 14 7 Guns 21 | . 14 7 Classes Destroyed 9 | 2 5 2 Worker 2 | . 2 . Builder 3 | . 3 . Tunneler 3 | 3 . . Recycler 5 | 1 4 . Watcher 2 | . 2 . Swarmer 3 | . 2 1 Grunt 13 | . 12 1 Sentry 1 | . . 1 Subdweller 4 | . . 4 Best Kill Streak 5 | 4 5 2 Combat Bots Only 4 | . 4 2 Max Kills in Single Turn 1 | 1 1 1 Gunslinging . | . . . Exploded . | . . . Melee . | . . . Uniques/NPCs Destroyed . | . . . Combat | -11 -10 -10 -------- Run | Yrd Mat Sub Hostile Shots Fired 124 | . 54 70 Missed 47 | . 21 26 Hits 77 | . 33 44 Projectile 77 | . 33 44 Critical Strikes 1 | . . 1 Damage Taken 1275 | . 392 883 Core 264 | . 34 230 Absorbed by Shields . | . . . Core Remaining (%) 100 | 100 . . Volleys Fired 135 | 7 85 43 Largest 2 | 2 2 2 Hottest 100 | 80 80 100 Shots Fired 239 | 14 162 63 Gun 229 | 14 162 53 Cannon 7 | . . 7 Launcher . | . . . Special 3 | . . 3 Kinetic 15 | . . 15 Thermal 224 | 14 162 48 Explosive . | . . . Electromagnetic . | . . . Robot Hit Streak 16 | 5 15 16 Robot Miss Streak 4 | 1 4 2 Penetration Max . | . . . Secondary Targets . | . . . Shots Hit Robots 165 | 9 111 45 Core Hits 65 | 5 46 14 Critical Kills . | . . . Critical Parts Destroyed . | . . . Critical Strikes . | . . . Melee Attacks . | . . . Impact . | . . . Slashing . | . . . Piercing . | . . . Sneak Attacks . | . . . Combat Hostiles . | . . . Follow-up Attacks . | . . . Damage Inflicted 1881 | 114 1189 578 Guns 1750 | 114 1189 447 Cannons 131 | . . 131 Explosions . | . . . Melee . | . . . Ramming . | . . . Kinetic 211 | . . 211 Thermal 1670 | 114 1189 367 Explosive . | . . . Electromagnetic . | . . . Impact . | . . . Slashing . | . . . Piercing . | . . . Highest Corruption . | . . . Average Corruption . | . . . Corruption Purged . | . . . Corruption Blocked . | . . . Overload Shots . | . . . Overflow Damage . | . . . Projectiles . | . . . Explosions . | . . . Melee . | . . . Knockbacks 1 | . . 1 Impact . | . . . Kinetic 1 | . . 1 Secondary . | . . . Self-Inflicted Damage . | . . . Shots . | . . . Rammed . | . . . Targets Rammed . | . . . Kicked . | . . . Crushed . | . . . Highest Temperature 318 | 90 318 . Average Temperature 85 | 38 89 . Received Heat Transfer 276 | . 213 63 Effects 2 | . 2 . Interference 2 | . 2 . Siege Activations . | . . . Martial Activations . | . . . Shielding Activations . | . . . Robots Disrupted . | . . . Combat Hostiles . | . . . Robots Corrupted . | . . . Combat Hostiles . | . . . Parts Fried . | . . . Impact Corruptions . | . . . Robots Melted . | . . . Combat Hostiles . | . . . Parts Melted 4 | . 4 . Heat Transferred 3800 | 250 2725 825 Parts Sabotaged . | . . . Parts Stolen . | . . . Parts Stripped . | . . . Power Chain Reactions . | . . . Alert | -11 -10 -10 ------- Run | Yrd Mat Sub Maximum Alert Level . | . . . Low Security (%) 100 | 100 100 . Level 1 . | . . . Level 2 . | . . . Level 3 . | . . . Level 4 . | . . . Level 5 . | . . . High Security . | . . . Max Security . | . . . Peak Influence 152 | 10 152 . Initial . | . . . Average 52 | . 61 . Influence Increases 579 | 20 499 60 Destroy 0b10 Robot/C 340 | . 280 60 Destroy 0b10 Robot/NC 75 | 20 55 . Destroy Leader 74 | . 74 . Select Force Hacks 60 | . 60 . Lose Combat Pursuer 30 | . 30 . Influence Decreases 579 | 20 356 203 Entered New Map 70 | . . 70 Time Decay 486 | 20 336 130 Lost Part 23 | . 20 3 Squads Dispatched 5 | . 5 . Investigation 4 | . 4 . Extermination . | . . . Reinforcement 1 | . 1 . Assault . | . . . Garrison . | . . . Intercept . | . . . Searches Triggered . | . . . Construction Impeded . | . . . Haulers Reinforced . | . . . Active Scanning Responses . | . . . Cargo Convoy Interrupts . | . . . Stealth | -11 -10 -10 --------- Run | Yrd Mat Sub Distress Signals 3 | . 3 . Communications Jammed . | . . . Distress Signals . | . . . Times Spotted 37 | . 29 8 Peak Tracking Total 5 | . 5 3 Tactical Retreats 2 | . 2 . Traps | -11 -10 -10 ------- Run | Yrd Mat Sub Traps Triggered 2 | . 1 1 Indirectly . | . . . Trap Hack Attempts . | . . . Triggered . | . . . Disarmed . | . . . Reprogrammed . | . . . Reused . | . . . Traps Extracted . | . . . Installed . | . . . Triggered . | . . . Machines | -11 -10 -10 ---------- Run | Yrd Mat Sub Machines Disabled . | . . . Max in Single Turn . | . . . Machines Repaired . | . . . Machines Dismantled . | . . . Machines Sabotaged . | . . . Overloaded Fab Kills . | . . . Hacking | -11 -10 -10 --------- Run | Yrd Mat Sub Machines Accessed 6 | . 6 . Terminals 4 | . 4 . Fabricators . | . . . Repair Stations . | . . . Recycling Units 2 | . 2 . Scanalyzers . | . . . Garrison Access . | . . . Total Hacks 10 | . 10 . Successful 4 | . 4 . Failed 6 | . 6 . Catastrophic 2 | . 2 . Database Lockouts . | . . . Manual 8 | . 8 . Terminals 5 | . 5 . Fabricators . | . . . Repair Stations . | . . . Recycling Units 5 | . 5 . Scanalyzers . | . . . Garrison Access . | . . . Terminal Hacks . | . . . Fabricator Hacks . | . . . Repair Station Hacks . | . . . Recycling Unit Hacks 2 | . 2 . Report Inventory 1 | . 1 . Retrieve Components 1 | . 1 . Scanalyzer . | . . . Garrison Access Hacks . | . . . Unauthorized Hacks 2 | . 2 . Terminals . | . . . Fabricators . | . . . Repair Stations . | . . . Recycling Units 2 | . 2 . Tunnel 2 | . 2 . Scanalyzers . | . . . Garrison Access . | . . . Data Cores Recovered . | . . . Used . | . . . Hacking Detections 4 | . 4 . Full Trace Events 1 | . 1 . Feedback Events . | . . . Feedback Blocked . | . . . Robot Schematics Acquired . | . . . Robots Built . | . . . Authchips . | . . . Time . | . . . Total Robot Build Rating . | . . . Part Schematics Acquired . | . . . Parts Built . | . . . Authchips . | . . . Time . | . . . Total Part Build Rating . | . . . Parts Repaired . | . . . Time . | . . . Parts Recycled . | . . . Recycled Matter . | . . . Retrieved Matter . | . . . Retrieved Components 7 | . 7 . Parts Scanalyzed . | . . . Part Schematics Acquired . | . . . Parts Damaged . | . . . Bothacking | -11 -10 -10 ------------ Run | Yrd Mat Sub Used RIF Installer . | . . . Robots Hacked . | . . . Non-combat . | . . . Combat . | . . . Robot Hacks Applied . | . . . Relay Couplers Released . | . . . Fabnet Peak Effective % . | . . . Robots Rewired . | . . . Allies Hacked . | . . . Hacks Repelled . | . . . Allies | -11 -10 -10 -------- Run | Yrd Mat Sub Total Allies . | . . . Largest Group . | . . . Highest-Rated Group . | . . . Highest-Rated Ally . | . . . Total Orders . | . . . Ally Attacks . | . . . Total Damage . | . . . Kills . | . . . Allies Corrupted . | . . . Allies Melted . | . . . Intel | -11 -10 -10 ------- Run | Yrd Mat Sub Active Infowar (turns) 964 | 17 529 418 Terrain 522 | 17 505 . Structural 442 | . 24 418 Robot Analysis Total . | . . . Derelict Logs Recovered . | . . . Drone Launches . | . . . Drone Recoveries . | . . . Exploration | -11 -10 -10 ------------- Run | Yrd Mat Sub Turns Passed 1794 | 127 811 856 Spaces Moved 1081 | 61 314 706 Core 7 | 5 . 2 Treads 369 | 56 313 . Legs . | . . . Wheels 705 | . 1 704 Hover . | . . . Flight . | . . . Fastest Speed 50 | 50 100 95 Average Speed 120 | 151 159 100 Slowest Speed 200 | 160 160 200 Overloaded Moves . | . . . Propulsion Burnouts . | . . . Robots Hopped . | . . . Potential Cave-ins . | . . . Cave-ins Triggered . | . . . Exploration Rate (%) 35 | 4 50 51 Regions Visited 2 Branch Regions 1 Pre-discovered Areas 2 | . 2 . Known Exits Taken . | . . . Unknown Exits Taken 2 | 1 1 . Scrap Searched 3 | . . 3 Spaces Dug . | . . . Terrain Destroyed . | . . . Melee . | . . . Projectile . | . . . AOE . | . . . Terrain Rammed . | . . . Walls Destroyed . | . . . Machines Disabled . | . . . Actions | -11 -10 -10 --------- Run | Yrd Mat Sub Total 1321 | 79 460 782 Wait 63 | . 54 9 Move 1079 | 60 313 706 Hop . | . . . Pick Up 16 | 5 4 7 Fast Attach 9 | 6 1 2 Attach 8 | 1 1 6 Detach 1 | . . 1 Swap 7 | . 1 6 Drop 3 | . 1 2 Fire 135 | 7 85 43 Melee . | . . . Ram . | . . . Kick . | . . . Crush . | . . . Escape Stasis . | . . . Rewire . | . . . Trap . | . . . Miscellaneous . | . . . Route ------- -11/Scrapyard -10/Materials (discovered 3 exits: [*Mat] / [*Min] / [*Sub]) -10/Subcaves History --------- Turn | Location | Event 11 | -11/Scrapyard | Discovered new exit (range 14) 128 | -11/Scrapyard | Entered Materials 302 | -10/Materials | Build established: Mutant 318 | -10/Materials | Discovered new exit (range 12) 896 | -10/Materials | Discovered new exit (range 14) 927 | -10/Materials | Discovered new exit (range 8) 939 | -10/Materials | Entered Subcaves 1094 | -10/Subcaves | Shifting Twisted Machinery released Battle Cannon 1177 | -10/Subcaves | Shifting Twisted Machinery released Barrage Gun 1224 | -10/Subcaves | Core integrity fell below 50% 1273 | -10/Subcaves | Lost 6 parts (1p2n3w) 1335 | -10/Subcaves | Shifting Twisted Machinery released Scrap Shield 1336 | -10/Subcaves | Shifting Twisted Machinery released Mak. Light Armor Plating 1613 | -10/Subcaves | Core integrity fell below 20% 1795 | -10/Subcaves | Destroyed by K6-UX4(R) with Subdweller Laser Last Messages --------------- Dropped Broken Sub. Machine Gun. Acquired Sub. Optics. Subatomizers dissect the Disposable Heat Sink. Triggered Piercing Trap. Spikes shoot up from the floor. Critical hit (Impale). Wheel destroyed. Critical hit (Impale). Searching scrap... Found Lgt. Humpback. Found 69 Matter. Acquired 30 matter. Searching scrap... Found Humpback. Found 52 Matter. Searching scrap... Found Shrapnel Trap. Found Sub. Machine Gun. Found 65 Matter. Acquired Sub. Machine Gun. Map ----- +----------------------------------------------------+ | ?????????????????????????????????????????????????? | | ?????????????????????????????????????????????????? | | ?????????????????????????????????????????????????? | | ?????????????????????????????????????????????????? | | ?????????????????????????????????????????????????? | | ?????????????????????????????????????????????????? | | ?????????????????????????????????????????????????? | | ?????????????????????????????????????????????????? | | ?????????????????????????????????????????????????? | | ?????????????????????????????????????????????????? | | ?????????????????????????????????????????????????? | | ?????????????????????????????????????????????????? | | ?????????????????????????????????????????????????? | | ?????????????????????????????????????????????????? | | ?????????????????????????????????????????????????? | | ?????????????????????????????????????????????????? | | ?????????????????????????????????????????????????? | | ?????????????????????????????????????????????????? | | ?????????????????????????????????????????????????? | | ?????????????????????????????????????????????????? | | ?????????????????????????????????????????????????? | | ?????????????????????????????????????????????????? | | ???????????????????????################??????????? | | ??????????????????????##################?????????? | | ??????????????????????###$ !% < <<<"###?????????? | | ??????????????????????##$@& % <<< ##?????????? | | ??????????????????????## % ! R < <<##?????????? | | ??????????????????????##<$ $ < < ""##?????????? | | ??????????????????????## < $ $<< < ##?????????? | | ??????????????????????#####<< < ##< < ##?????????? | | ??????????????????????############" ""##?????????? | | ?????????????????????????########" " ##???######? | | ??????????????????????????## # ""###???####### | | ??????????????????????????### "######## ### | | ????????????????????????#### ## ######### ## | | ??????????????????????###### "###### ## ## | | ??????????????????????#### " ### ## | | ??????????????????????## | | ??????????????????????## ### ## | | ??????????????????????## ## ## | | ??????????????????????## ### ##### | | ?????????????????????### ### ###### | | ?????????????????????## ## ###### | | ????????????????????### ## ##### ##?## | | ????????????????????## ########### #### ? | | ???????????????????? #######?#### #### | | ?????????????????? ##????????### #### | | ???????????????? ??????????### #### | | ??????????????? ??????????## ### | | ??????????????# ## ###??????????## #### | +----------------------------------------------------+ Best States ------------- Heat Dissipation 25 Energy Generation 15 Energy Capacity 250 Matter Stores 300 Matter Capacity 300 Sight Range 16 Terrain Scan Range 16 Terrain Scan Density 10 Armor Coverage 100 Evasion (%) 41 Targeting Accuracy 5 Recoil Reduction 2 Item Schematics ----------------- None Robot Schematics ------------------ None Fabricated ------------ Nothing Repaired ---------- Nothing Alien Tech Used ----------------- None Achievements -------------- None Challenges ------------ None Game ------ Seed MiniEnhancedCutter Manual? 0 Play Time 00:13:24 Cumulative 117.4 hours Start 2025.06.09 @ 01:56:48 End 2025.06.09 @ 02:12:39 Sessions 1 Manual Loads 0 Difficulty Rogue Special Mode None Game No. 120 Rogue 120 Adventurer 0 Explorer 0 Win Type - Total 2 Types 1/0/0/1/0/0/0/0/0/0 Lore% 59 Gallery% 55 Achievement% 50 Wizard Run 0 Options --------- Layout 1 ASCII 0 Keyboard 1 Movement Numpad Keybinds 0 Fullscreen 1 Font 32/SmallcapsGlow Map View 77x35 Zoom Use 0% Tactical HUD 0 Map Filters NONE Filters NONE Steam 1 RUN: 7415d55d-0195-43c3-9d3c-d94d55552a7d